bitfinex-derivatives/quotes_ETHF0:USTF0_20241129
["timestamp","ask_amount","ask_price","bid_price","bid_amount"]
[1732857846992,5.75444426,3591.6,3591.2,0.27841]
[1732857847800,0.27838,3591.6,3591.2,0.27841]
[1732857847996,1.02428396,3591.3,3591.2,0.27841]
[1732857848490,1.02428396,3591.3,3591.2,3.48621]
[1732857850301,1.02428396,3591.3,3591.2,3.2078]
[1732857850488,1.30268396,3591.3,3591.2,3.2078]
[1732857850688,0.2784,3591.4,3591.2,3.2078]
[1732857851001,1.30267396,3591.5,3591.2,3.48621]
[1732857851197,1.30267396,3591.5,3591.2,3.2078]
[1732857851505,1.02428396,3591.5,3591.2,3.2078]
[1732857851695,2.04856792,3591.5,3591.2,3.2078]
[1732857852199,1.02428396,3591.5,3591.2,3.2078]
[1732857853000,5.47606426,3591.3,3591.2,3.2078]
[1732857853200,5.47606426,3591.3,3591.1,41.51232]
[1732857853403,1.02428396,3591.2,3591.1,41.51232]
[1732857854391,5.47606426,3591.3,3591.2,0.27841]
[1732857854592,1.02428396,3591.3,3591.2,0.27841]
[1732857855098,1.02428396,3591.3,3591.1,41.2339]
[1732857855297,1.02428396,3591.3,3591.2,0.27841]
[1732857855697,1.02428396,3591.3,3591.2,3.48621]
[1732857856598,5.47606426,3591.7,3591.2,10.0626]
[1732857856801,5.47606426,3592.1,3591.6,3.2078]
[1732857857002,1.02428396,3592.2,3592.0,3.2078]
[1732857857300,1.02428396,3592.2,3592.0,3.48614]
[1732857857501,0.27832,3592.4,3592.0,3.48614]
[1732857857502,5.47606426,3592.4,3592.0,3.2078]
[1732857857695,1.02428396,3592.2,3592.0,3.2078]
[1732857857894,1.02428396,3592.2,3592.1,0.27834]
[1732857858400,1.02428396,3592.2,3592.0,3.48615]
[1732857858594,1.02428396,3592.2,3592.0,3.2078]
[1732857858794,1.02428396,3592.2,3592.0,3.48615]
[1732857859398,1.02428396,3592.2,3592.1,0.27834]
[1732857859603,1.02428396,3592.2,3592.0,3.2078]
[1732857859795,1.02428396,3592.2,3592.0,3.48615]
[1732857860203,1.02428396,3592.2,3592.1,0.27834]
[1732857861302,5.47606426,3592.8,3592.4,0.27832]
[1732857861303,1.02428396,3592.5,3592.4,0.27832]
[1732857862504,1.02428396,3592.5,3592.4,7.58612]
[1732857863102,1.02428396,3592.7,3592.5,0.27831]
[1732857863305,1.02428396,3592.7,3592.6,1.1608]
[1732857865202,1.02428396,3592.7,3592.6,0.8825]
[1732857866396,1.02428396,3592.7,3592.6,1.1608]
[1732857867601,1.02428396,3592.7,3592.6,0.8825]
[1732857868511,1.02428396,3592.7,3592.6,1.1608]
[1732857871003,1.02428396,3592.7,3592.6,0.8825]
[1732857871203,0.27831,3592.5,3592.4,3.2078]
[1732857871399,0.27831,3592.6,3592.4,3.2078]
[1732857872806,1.02428396,3592.7,3592.4,3.2078]
[1732857873012,1.30258396,3592.7,3592.4,3.2078]
[1732857873403,2.7832,3592.6,3591.7,3.2078]
[1732857873608,1.02428396,3592.1,3591.8,0.8199]
[1732857873804,1.02428396,3592.1,3591.9,40.8]
[1732857876219,1.02428396,3592.1,3591.9,41.2071]
[1732857877220,1.02428396,3592.1,3591.9,41.48546]
[1732857878318,1.02428396,3592.1,3591.9,41.2071]
[1732857878716,1.02428396,3592.1,3592.0,0.27835]
[1732857878924,1.02428396,3592.1,3591.9,0.68545]
[1732857879122,1.02428396,3592.1,3592.0,0.27835]
[1732857879425,1.02428396,3592.1,3592.0,40.8]
[1732857879623,1.02428396,3592.1,3592.0,41.07835]
[1732857880219,1.02428396,3592.1,3592.0,40.8]
[1732857880414,3.2078,3592.7,3592.0,40.8]
[1732857880618,1.02428396,3592.4,3592.2,0.27833]
[1732857880821,1.02428396,3592.4,3592.1,3.2078]
[1732857881125,0.27833,3592.3,3592.1,3.2078]
[1732857881718,1.02428396,3592.4,3592.1,3.2078]
[1732857881925,0.27833,3592.2,3592.1,3.2078]
[1732857882122,0.27833,3592.2,3592.0,40.8]
[1732857882428,1.02428396,3592.1,3592.0,40.8]
[1732857883627,1.30262396,3592.1,3592.0,40.8]
[1732857883922,1.30262396,3592.1,3591.9,0.4071]
[1732857884327,1.02428396,3592.1,3591.9,0.4071]
[1732857884524,0.27835,3592.0,3591.9,0.4071]
[1732857884723,1.02428396,3592.1,3591.8,0.8199]
[1732857884724,0.27836,3591.9,3591.8,0.8199]
[1732857886628,0.27836,3591.9,3591.7,0.416]
[1732857886629,12.01608396,3591.9,3591.1,3.2078]
[1732857886832,0.27846,3590.6,3590.5,0.4365]
[1732857887028,1.02428396,3590.6,3590.3,4.0279]
[1732857887229,1.02428396,3590.6,3590.3,4.30638]
[1732857888429,1.02428396,3590.6,3590.4,0.27847]
[1732857889520,1.02428396,3590.6,3590.3,4.0279]
[1732857889820,1.02428396,3591.0,3590.7,0.27845]
[1732857890018,1.02428396,3591.0,3590.7,3.2078]
[1732857890019,0.27844,3590.9,3590.7,3.2078]
[1732857890531,0.27844,3590.9,3590.8,41.2103]
[1732857891031,0.27843,3591.1,3590.8,41.2103]
[1732857891330,0.27843,3591.0,3590.9,0.4388]
[1732857891727,0.27842,3591.1,3590.9,0.4388]
[1732857891926,0.27842,3591.1,3591.0,0.4443]
[1732857893429,0.27847,3590.5,3590.0,3.2078]
[1732857893621,2.11845691,3590.4,3590.1,0.4401]
[1732857894627,2.11845691,3590.4,3590.1,0.7186]
[1732857894826,0.3027,3591.0,3590.1,0.4401]
[1732857895031,0.3027,3591.0,3590.2,0.27849]
[1732857895032,0.27845,3590.7,3590.2,0.27849]
[1732857896027,0.27844,3590.8,3590.1,0.71859]
[1732857896232,2.11845691,3590.9,3590.1,0.71859]
[1732857896429,2.11845691,3590.9,3590.1,0.4401]
[1732857896624,3.2078,3591.1,3590.4,3.2078]
[1732857896830,0.27843,3591.0,3590.5,0.27847]
[1732857897234,2.11845691,3591.1,3590.7,0.27845]
[1732857897427,2.11845691,3591.1,3590.8,0.4043]
[1732857897827,0.27843,3591.0,3590.8,0.4043]
[1732857898028,2.11845691,3591.1,3590.8,0.4043]
[1732857898229,0.27843,3591.0,3590.8,0.4043]
[1732857899134,2.39687691,3591.1,3590.8,0.4043]
[1732857899528,2.39687691,3591.1,3590.9,40.8]
[1732857900228,3.2078,3591.5,3591.0,3.06323]
[1732857900229,2.11845691,3591.5,3591.0,3.06323]
[1732857900424,2.11845691,3591.5,3591.2,3.48621]
[1732857900834,2.39684691,3591.5,3591.3,40.8]
[1732857901033,2.39684691,3591.5,3591.4,0.4387]
[1732857901738,4.90245691,3591.5,3591.2,3.2078]
[1732857901933,0.2784,3591.3,3591.2,3.2078]
[1732857902929,3.0632,3591.3,3591.2,3.2078]
[1732857903125,0.2784,3591.3,3591.2,3.2078]
[1732857903533,0.27841,3591.2,3591.1,0.4469]
[1732857903937,0.27843,3591.0,3590.9,0.4407]
[1732857904233,2.39688691,3591.0,3590.9,0.856]
[1732857906029,3.06323,3591.0,3590.9,0.856]
[1732857906234,0.27843,3591.0,3590.9,0.856]
[1732857906937,3.06323,3591.0,3590.9,0.856]
[1732857907135,2.7848,3591.0,3590.8,0.4043]
[1732857907332,0.27844,3590.9,3590.8,0.4043]
[1732857907736,2.11845691,3591.1,3590.8,0.4043]
[1732857908035,0.27843,3591.0,3590.8,0.4043]
[1732857908535,0.27844,3590.9,3590.8,0.4043]
[1732857909433,0.27843,3591.0,3590.8,0.4043]
[1732857909834,2.11845691,3591.1,3590.8,0.4043]
[1732857910634,0.27843,3591.0,3590.8,0.4043]
[1732857912038,2.11845691,3591.1,3590.8,0.4043]
[1732857912234,0.27842,3591.1,3590.8,0.4043]
[1732857912433,3.2078,3591.1,3590.8,0.4043]
[1732857912641,0.27844,3590.9,3590.8,0.4043]
[1732857913438,3.06324,3590.9,3590.8,0.4043]
[1732857914449,0.27846,3590.7,3590.5,0.8789]
[1732857915140,0.27846,3590.6,3590.5,0.8789]
[1732857915940,0.27845,3590.7,3590.5,0.8789]
[1732857916135,0.27846,3590.6,3590.5,0.8789]
[1732857917142,2.39690691,3590.8,3590.5,0.8789]
[1732857919048,2.11845691,3590.8,3590.5,0.8789]
[1732857919241,0.27845,3590.7,3590.5,0.8789]
[1732857919547,4.2478,3591.1,3590.5,0.8789]
[1732857919844,0.27844,3590.9,3590.5,1.15736]
[1732857920243,0.27844,3590.8,3590.5,1.15736]
[1732857920642,0.27844,3590.8,3590.5,0.8789]
[1732857920841,0.27846,3590.6,3590.5,0.8789]
[1732857921241,0.27845,3590.7,3590.5,41.6789]
[1732857921541,2.11845691,3590.8,3590.5,41.6789]
[1732857921739,2.39687691,3590.8,3590.5,41.6789]
[1732857922344,0.27841,3590.9,3590.5,41.6789]
[1732857922841,1.04,3591.1,3590.5,41.6789]
[1732857923043,1.04,3591.1,3590.5,41.95733]
[1732857923346,1.3184,3591.1,3590.7,0.27842]
[1732857923548,1.3184,3591.1,3590.8,0.27841]
[1732857923748,1.04,3591.1,3590.7,3.2078]
[1732857924045,1.04,3591.1,3590.9,0.27841]
[1732857924247,1.31839,3591.1,3591.0,0.4074]
[1732857924437,0.27839,3591.1,3591.0,0.4074]
[1732857925045,2.39684691,3591.2,3591.0,0.4074]
[1732857925352,0.27838,3591.3,3591.1,3.92619]
[1732857925542,0.27838,3591.3,3591.2,0.4378]
[1732857927349,2.11845691,3591.6,3591.2,0.4378]
[1732857927350,0.27837,3591.4,3591.2,0.4378]
[1732857927852,2.11845691,3591.6,3591.2,0.4378]
[1732857928145,0.27838,3591.3,3591.2,0.4378]
[1732857929254,0.27837,3591.4,3591.2,0.4378]
[1732857930152,0.27837,3591.5,3591.2,0.4378]
[1732857930548,0.27837,3591.5,3591.2,0.71618]
[1732857930744,2.39681691,3591.6,3591.2,0.71618]
[1732857931549,0.27836,3591.5,3591.2,0.71618]
[1732857931953,2.11845691,3591.6,3591.2,0.4378]
[1732857932149,0.27838,3591.3,3591.2,0.4378]
[1732857932362,2.11845691,3591.6,3591.2,0.4378]
[1732857932559,0.27837,3591.4,3591.2,0.4378]
[1732857932957,2.11845691,3591.6,3591.2,0.4378]
[1732857933164,0.27838,3591.3,3591.2,0.4378]
[1732857933460,0.27838,3591.3,3591.0,0.4074]
[1732857933461,0.27839,3591.1,3591.0,0.4074]
[1732857933665,5.18164691,3591.1,3591.0,0.4074]
[1732857934061,2.39684691,3591.1,3591.0,0.4074]
[1732857935357,0.27841,3590.9,3590.8,0.8341]
[1732857937663,0.27841,3590.9,3590.6,3.2078]
[1732857937664,2.7848,3590.9,3590.6,3.2078]
[1732857937866,0.27842,3590.7,3590.6,3.2078]
[1732857938860,6.1542774,3591.1,3590.5,0.4277]
[1732857938861,2.11845691,3590.8,3590.5,0.4277]
[1732857939067,2.11845691,3590.8,3590.3,0.8549]
[1732857939068,0.27845,3590.4,3590.3,0.8549]
[1732857944464,2.11845691,3590.8,3590.3,0.8549]
[1732857944771,0.27843,3590.6,3590.3,0.8549]
[1732857945168,0.27843,3590.6,3590.4,40.8]
[1732857945577,0.27839,3591.1,3590.4,44.0078]
[1732857945877,0.27842,3590.8,3590.4,44.0078]
[1732857946569,3.43705189,3591.2,3590.4,48.4178]
[1732857946775,3.43705189,3591.2,3590.4,48.69624]
[1732857946979,3.15845691,3591.2,3590.4,48.4178]
[1732857947170,0.2784,3591.1,3590.6,0.27843]
[1732857947469,0.2784,3591.1,3590.8,3.2078]
[1732857947678,0.2784,3591.0,3590.9,0.4098]
[1732857947971,0.2784,3591.0,3590.9,0.8503]
[1732857948765,0.27839,3591.1,3590.9,0.8503]
[1732857948969,0.27839,3591.1,3591.0,0.4173]
[1732857949566,0.27838,3591.3,3591.0,0.4173]
[1732857949769,0.27837,3591.4,3591.0,0.4173]
[1732857949971,0.27837,3591.4,3591.0,0.6957]
[1732857950168,0.27838,3591.3,3591.0,0.4173]
[1732857950570,0.27838,3591.4,3591.0,0.4173]
[1732857950870,0.27837,3591.4,3591.2,3.2078]
[1732857951277,0.27838,3591.3,3591.2,3.2078]
[1732857951477,4.2478,3591.9,3591.0,0.4173]
[1732857951670,2.11845691,3591.6,3591.0,0.4173]
[1732857951871,0.27838,3591.3,3591.0,0.4173]
[1732857952173,0.27839,3591.1,3591.0,0.4173]
[1732857954069,0.3028,3591.5,3591.0,0.4173]
[1732857954070,0.27839,3591.2,3591.0,0.4173]
[1732857954276,0.27839,3591.1,3591.0,0.4173]
[1732857955272,0.27839,3591.2,3591.0,0.4173]
[1732857955680,2.11845691,3591.6,3591.0,0.4173]
[1732857955981,0.27839,3591.2,3591.0,0.4173]
[1732857956280,2.11845691,3591.6,3591.0,0.4173]
[1732857956479,0.27837,3591.4,3591.0,0.4173]
[1732857958275,2.11845691,3591.6,3591.1,44.0078]
[1732857958577,2.11845691,3591.6,3591.1,44.28619]
[1732857958578,0.27837,3591.5,3591.1,44.28619]
[1732857959578,0.27837,3591.5,3591.1,48.14619]
[1732857960173,0.27837,3591.4,3591.1,48.14619]
[1732857960582,3.2078,3591.8,3591.1,47.8678]
[1732857960895,0.27837,3591.4,3591.1,48.14619]
[1732857961976,2.11845691,3591.9,3591.1,47.8678]
[1732857962280,0.27838,3591.3,3591.1,47.8678]
[1732857962472,2.11845691,3591.9,3591.1,47.8678]
[1732857962676,0.27837,3591.4,3591.1,48.14619]
[1732857963079,2.11845691,3591.9,3591.1,44.0078]
[1732857963373,0.27838,3591.2,3591.1,3.2078]
[1732857964484,2.11845691,3591.5,3591.1,3.2078]
[1732857964485,0.27838,3591.3,3591.1,3.2078]
[1732857964777,0.27837,3591.4,3591.1,3.2078]
[1732857966086,2.11845691,3591.7,3591.1,3.2078]
[1732857966377,0.27837,3591.4,3591.1,3.2078]
[1732857968083,0.27837,3591.4,3591.0,0.6957]
[1732857968284,0.27837,3591.4,3591.0,3.9035]
[1732857968686,0.27837,3591.4,3591.0,3.6251]
[1732857969281,0.27837,3591.4,3591.1,40.8]
[1732857970281,2.11845691,3591.9,3591.1,40.8]
[1732857971296,0.27837,3591.4,3591.1,40.8]
[1732857972688,0.27836,3591.6,3591.1,40.8]
[1732857972987,0.27836,3591.5,3591.1,41.07839]
[1732857976388,1.02396252,3591.6,3591.1,40.8]
[1732857976693,0.27837,3591.5,3591.1,40.8]
[1732857977188,1.02396252,3591.6,3591.1,40.8]
[1732857977390,0.27837,3591.4,3591.1,40.8]
[1732857977689,0.27836,3591.5,3591.1,40.3]
[1732857977889,1.02396252,3591.3,3591.1,40.3]
[1732857979283,1.02396252,3591.3,3591.1,40.57839]
[1732857979888,1.02396252,3591.3,3591.1,40.3]
[1732857983588,1.30234252,3591.3,3591.1,40.3]
[1732857983997,1.02396252,3591.3,3591.1,40.3]
[1732857987894,1.30234252,3591.3,3591.1,40.3]
[1732857988097,1.02396252,3591.3,3591.1,40.3]
[1732857988487,1.02396252,3591.3,3591.1,40.57839]
[1732857988991,0.27837,3591.5,3591.1,40.3]
[1732857989198,3.2078,3592.4,3591.4,3.2078]
[1732857989397,0.2783,3592.3,3592.2,3.2078]
[1732857989894,0.2783,3592.3,3592.2,44.0078]
[1732857990197,0.2783,3592.3,3592.2,3.2078]
[1732857990700,0.27831,3592.2,3592.0,0.4035]
[1732857990903,0.27831,3592.2,3592.1,0.4271]
[1732857991392,0.27829,3592.5,3592.1,0.4271]
[1732857991701,6.54994488,3593.5,3592.4,4.23176252]
[1732857991997,1.02396252,3593.8,3593.4,3.2078]
[1732857992190,1.02396252,3593.8,3592.9,3.2078]
[1732857992390,0.2782,3593.6,3593.0,41.07824]
[1732857992800,0.2782,3593.7,3593.0,41.07824]
[1732857992993,0.2782,3593.7,3593.1,0.27824]
[1732857993498,0.2782,3593.7,3593.0,41.07824]
[1732857993703,0.3032,3594.2,3593.1,1.02396252]
[1732857994001,1.30213252,3594.0,3593.3,3.48602]
[1732857994199,0.27817,3594.0,3593.3,3.2078]
[1732857994396,5.72783931,3594.3,3593.3,3.2078]
[1732857994397,2.52003931,3594.3,3593.3,3.2078]
[1732857994599,2.52003931,3594.3,3593.7,3.2078]
[1732857994800,2.39308931,3594.3,3593.8,0.4127]
[1732857995098,0.27815,3594.2,3593.8,0.8546]
[1732857995405,2.39308931,3594.3,3593.8,0.8546]
[1732857995700,2.11493931,3594.3,3593.8,0.8546]
[1732857995900,0.27817,3594.1,3593.8,0.8546]
[1732857996094,0.27817,3594.0,3593.8,0.8546]
[1732857996598,0.27816,3594.1,3593.8,0.8546]
[1732857997601,2.11493931,3594.3,3593.8,0.8546]
[1732857997602,0.27817,3594.0,3593.8,0.8546]
[1732857997797,2.11493931,3594.3,3593.8,0.8546]
[1732857997798,0.27816,3594.1,3593.8,0.8546]
[1732857998099,2.11493931,3594.3,3593.8,0.8546]
[1732857998304,0.27818,3593.8,3593.1,0.4343]
[1732857998515,0.2782,3593.7,3593.2,0.4471]
[1732857998796,5.32273931,3593.9,3593.2,0.4471]
[1732857999001,0.27819,3593.7,3593.2,0.4471]
[1732857999305,0.2782,3593.7,3593.2,0.4471]
[1732857999808,3.2078,3595.3,3593.6,3.2078]
[1732858000101,2.39303931,3594.9,3594.4,3.2078]
[1732858000302,2.11493931,3594.9,3594.4,3.2078]
[1732858000505,2.39303931,3594.9,3594.4,3.2078]
[1732858000704,2.11493931,3594.9,3594.4,3.2078]
[1732858000907,2.39306931,3594.5,3594.4,3.2078]
[1732858001106,0.27815,3594.2,3593.9,3.2078]
[1732858001403,0.27814,3594.3,3593.9,3.2078]
[1732858001704,0.8477,3594.4,3593.9,3.48597]
[1732858002203,0.8477,3594.4,3593.9,3.2078]
[1732858002398,1.12584,3594.4,3593.9,3.2078]
[1732858003199,0.8477,3594.4,3593.9,3.2078]
[1732858003905,0.27815,3594.3,3593.9,3.2078]
[1732858004098,0.8477,3594.4,3593.9,3.2078]
[1732858004300,0.27816,3594.2,3593.9,3.2078]
[1732858004501,0.27816,3594.1,3593.9,3.2078]
[1732858004702,0.8477,3594.4,3593.9,3.2078]
[1732858005203,0.27815,3594.3,3593.9,3.2078]
[1732858005503,0.27815,3594.2,3593.9,3.2078]
[1732858005702,2.11493931,3594.1,3593.4,3.6353]
[1732858005922,0.2782,3593.6,3593.4,3.6353]
[1732858006402,0.4343,3593.6,3593.4,3.6353]
[1732858006803,0.27818,3593.9,3593.4,3.6353]
[1732858007200,0.27821,3593.5,3593.4,3.6353]
[1732858007403,0.27821,3593.5,3593.4,3.2078]
[1732858008207,2.11493931,3593.6,3593.0,3.2078]
[1732858008507,0.27823,3593.3,3593.0,3.2078]
[1732858009411,0.4464,3593.4,3593.0,3.2078]
[1732858009607,0.27819,3593.8,3593.0,3.2078]
[1732858009908,0.27819,3593.8,3593.1,0.27823]
[1732858010308,0.27819,3593.8,3593.0,3.2078]
[1732858010506,0.27819,3593.8,3593.4,3.2078]
[1732858010809,0.27819,3593.7,3593.5,0.4042]
[1732858011205,0.27819,3593.7,3593.5,0.8265]
[1732858011912,2.11493931,3594.0,3593.5,0.8265]
[1732858012113,0.2782,3593.6,3593.5,0.8265]
[1732858012813,0.2782,3593.6,3593.5,0.4042]
[1732858013204,4.89733931,3593.6,3593.4,3.2078]
[1732858013410,0.69551,3593.5,3593.4,3.2078]
[1732858013705,1.14251,3593.5,3593.4,3.2078]
[1732858014311,3.2078,3593.9,3593.4,3.2078]
[1732858014616,0.2782,3593.6,3593.4,3.2078]
[1732858015607,3.2078,3593.9,3593.5,2.7832]
[1732858015812,0.2782,3593.7,3593.6,0.4339]
[1732858019709,0.2782,3593.7,3593.5,0.4275]
[1732858019710,0.2782,3593.6,3593.5,0.4275]
[1732858024817,0.27823,3593.2,3593.1,0.4316]
[1732858033019,0.27827,3592.7,3592.3,3.2078]
[1732858033312,0.27828,3592.5,3592.4,0.4211]
[1732858034116,0.27828,3592.6,3592.4,0.4211]
[1732858034508,0.27827,3592.7,3592.4,0.4211]
[1732858034714,2.11493931,3592.8,3592.4,0.4211]
[1732858034914,0.27828,3592.6,3592.4,0.4211]
[1732858035315,0.27828,3592.5,3592.4,0.4211]
[1732858035622,0.27828,3592.6,3592.4,0.4211]
[1732858036320,2.11493931,3592.8,3592.4,0.4211]
[1732858036321,0.27828,3592.5,3592.4,0.4211]
[1732858037919,2.11493931,3592.8,3592.4,0.4211]
[1732858038120,0.27827,3592.7,3592.4,0.4211]
[1732858038619,0.27828,3592.6,3592.4,0.4211]
[1732858039020,2.11493931,3592.8,3592.4,0.4211]
[1732858039220,0.27827,3592.7,3592.4,0.4211]
[1732858040725,2.11493931,3592.8,3592.4,0.4211]
[1732858040927,0.27825,3593.0,3592.4,0.69939]
[1732858041124,0.27825,3593.0,3592.5,0.27828]
[1732858042019,0.27826,3592.9,3592.4,0.4211]
[1732858042415,0.27826,3592.9,3592.5,40.8]
[1732858042822,0.8462,3593.1,3592.5,40.8]
[1732858043126,0.27825,3593.0,3592.5,40.8]
[1732858043329,2.39316931,3593.2,3592.7,0.27826]
[1732858043526,2.11493931,3593.2,3592.7,3.48606]
[1732858043724,0.27823,3593.3,3592.7,3.48606]
[1732858043927,2.98163931,3593.6,3592.7,3.2078]
[1732858044222,2.11493931,3593.2,3592.7,3.2078]
[1732858044424,0.27824,3593.1,3592.7,3.2078]
[1732858045325,2.39317931,3593.2,3592.7,3.2078]
[1732858046430,2.39317931,3593.2,3592.7,3.48607]
[1732858047734,2.11493931,3593.2,3592.7,3.48606]
[1732858047920,0.8667,3593.6,3592.7,3.2078]
[1732858048127,0.27824,3593.1,3592.7,3.2078]
[1732858048427,0.27826,3592.8,3592.7,3.2078]
[1732858049735,0.27826,3592.9,3592.7,3.2078]
[1732858051034,0.27825,3592.9,3592.7,3.2078]
[1732858051235,0.71695,3593.0,3592.7,3.2078]
[1732858051628,0.4387,3593.0,3592.7,3.2078]
[1732858051831,0.27825,3592.9,3592.7,3.2078]
[1732858052831,0.27826,3592.9,3592.7,3.2078]
[1732858053636,0.4387,3593.0,3592.7,3.2078]
[1732858053637,0.27826,3592.8,3592.7,3.2078]
[1732858055139,0.27829,3592.4,3592.3,0.846]
[1732858055344,0.27829,3592.5,3592.3,0.846]
[1732858055839,0.27829,3592.4,3592.3,0.846]
[1732858056136,0.27829,3592.5,3592.3,0.846]
[1732858056343,0.27829,3592.4,3592.3,0.846]
[1732858057444,0.27828,3592.5,3592.3,0.846]
[1732858057846,2.11493931,3592.8,3592.3,0.4313]
[1732858058040,0.4387,3593.0,3592.3,0.8644]
[1732858058240,0.27826,3592.9,3592.3,1.1427]
[1732858058449,0.27826,3592.9,3592.6,3.2078]
[1732858058656,0.27827,3592.7,3592.6,3.2078]
[1732858059051,0.27826,3592.8,3592.6,3.2078]
[1732858060151,0.27825,3592.9,3592.7,0.4308]
[1732858060654,0.27826,3592.8,3592.7,0.4308]
[1732858061254,0.4473,3593.1,3592.7,0.4308]
[1732858061448,0.72554,3593.1,3592.7,0.4308]
[1732858061649,0.27826,3592.8,3592.7,0.4308]
[1732858061954,0.4473,3593.1,3592.7,0.4308]
[1732858062254,0.27824,3593.0,3592.7,0.4308]
[1732858063953,0.27825,3593.0,3592.7,0.4308]
[1732858067560,0.27824,3593.0,3592.7,0.4308]
[1732858067761,0.4473,3593.1,3592.7,0.4308]
[1732858068263,0.27826,3592.9,3592.7,0.4308]
[1732858068762,0.27825,3593.0,3592.7,0.4308]
[1732858070257,0.27824,3593.0,3592.7,0.4308]
[1732858070757,1.47036907,3593.1,3592.7,0.4308]
[1732858070956,0.27825,3592.9,3592.7,0.4308]
[1732858072355,1.47036907,3593.1,3592.7,0.4308]
[1732858072562,1.47036907,3593.1,3592.6,3.2078]
[1732858072763,0.27827,3592.7,3592.6,3.2078]
[1732858072958,1.02306907,3592.8,3592.2,3.2078]
[1732858073262,1.02306907,3592.5,3591.8,3.2078]
[1732858073462,0.27831,3592.2,3591.8,3.2078]
[1732858073660,0.27827,3592.7,3592.1,0.27831]
[1732858073963,0.422,3593.0,3592.3,4.23086907]
[1732858074156,0.27825,3592.9,3592.4,0.4258]
[1732858074355,0.27825,3592.9,3592.5,40.8]
[1732858074559,0.27826,3592.8,3592.5,40.8]
[1732858074960,0.27826,3592.9,3592.5,40.8]
[1732858075161,0.27826,3592.8,3592.5,40.8]
[1732858078763,0.27849567,3592.9,3592.5,40.8]
[1732858078968,0.27827,3592.7,3592.5,40.8]
[1732858079859,1.30156474,3592.9,3592.5,40.8]
[1732858080066,0.27828,3592.6,3592.5,40.8]
[1732858080267,0.27828,3592.5,3592.4,0.4258]
[1732858080474,0.70288,3592.5,3592.4,0.4258]
[1732858080969,1.12998,3592.5,3592.4,0.4258]
[1732858087366,0.27831,3592.1,3591.9,7.52980556]
[1732858087567,0.27831,3592.1,3591.9,8.37520556]
[1732858087766,0.2783,3592.3,3591.9,8.37520556]
[1732858087972,0.2783,3592.3,3591.9,49.17520556]
[1732858088674,0.8517,3592.5,3591.9,49.17520556]
[1732858088675,0.27831,3592.2,3591.9,49.17520556]
[1732858089467,0.2783,3592.3,3591.9,49.17520556]
[1732858089667,0.8517,3592.5,3591.9,49.17520556]
[1732858089870,0.2783,3592.3,3591.9,49.17520556]
[1732858090269,0.27831,3592.2,3591.9,49.17520556]
[1732858090469,0.8517,3592.5,3591.9,49.17520556]
[1732858090673,0.27831,3592.2,3591.9,49.17520556]
[1732858091677,0.2783,3592.3,3591.9,49.17520556]
[1732858092277,0.2783,3592.3,3592.2,3.2078]
[1732858093080,1.12999,3592.5,3592.2,3.2078]
[1732858093273,0.27826,3592.8,3592.3,0.4374]
[1732858093475,0.27827,3592.8,3592.3,0.4374]
[1732858093772,0.27849567,3592.9,3592.4,0.4374]
[1732858094079,0.27828,3592.7,3592.4,0.4374]
[1732858094280,0.27828,3592.7,3592.5,0.4068]
[1732858094474,0.27849567,3592.9,3592.5,0.4068]
[1732858094681,0.27826,3592.8,3592.5,0.4068]
[1732858096781,0.27849567,3592.9,3592.5,0.4068]
[1732858096976,0.27826,3592.8,3592.5,0.4068]
[1732858097176,0.27827,3592.7,3592.5,0.4068]
[1732858097379,0.27826,3592.8,3592.5,0.4068]
[1732858097581,0.27828,3592.6,3592.5,0.4068]
[1732858098684,0.27828,3592.6,3592.5,3.6146]
[1732858099574,0.27849567,3592.9,3592.5,3.6146]
[1732858099575,0.27827,3592.7,3592.5,3.6146]
[1732858100079,0.27826,3592.8,3592.5,3.6146]
[1732858102377,0.27849567,3592.9,3592.5,3.6146]
[1732858102585,0.27827,3592.7,3592.5,3.6146]
[1732858103388,0.27827,3592.8,3592.5,3.6146]
[1732858103979,0.27827,3592.7,3592.5,3.6146]
[1732858104186,0.27828,3592.6,3592.5,3.6146]
[1732858106286,0.27828,3592.6,3592.1,4.32200556]
[1732858106494,0.2783,3592.3,3592.2,0.4452]
[1732858107484,0.4048,3592.4,3592.1,0.438]
[1732858107793,0.2783,3592.3,3592.1,0.438]
[1732858107988,0.2783,3592.3,3592.2,0.4452]
[1732858108696,0.6831,3592.4,3592.2,0.4452]
[1732858108989,0.2783,3592.3,3592.2,0.4452]
[1732858110088,0.4048,3592.4,3592.2,0.4452]
[1732858111790,0.2783,3592.3,3592.2,3.653]
[1732858112293,0.2783,3592.3,3592.2,0.4452]
[1732858112591,0.2783,3592.3,3592.2,3.653]
[1732858113086,0.2783,3592.4,3592.2,3.653]
[1732858113489,0.27829,3592.4,3592.2,3.653]
[1732858113891,0.27829,3592.4,3592.2,44.453]
[1732858115889,0.2783,3592.3,3592.2,44.453]
[1732858116095,1.02306907,3592.5,3592.2,44.453]
[1732858116299,0.27829,3592.4,3592.2,44.453]
[1732858116998,1.02306907,3592.3,3592.2,44.453]
[1732858117196,1.02306907,3592.3,3592.2,3.653]
[1732858117794,1.30136907,3592.3,3592.2,3.653]
[1732858119701,0.27828,3592.5,3592.2,3.653]
[1732858120701,0.27829,3592.4,3592.2,3.653]
[1732858120996,0.2783,3592.4,3592.2,3.653]
[1732858121901,1.02306907,3592.3,3592.2,3.653]
[1732858123806,1.30136907,3592.3,3592.2,3.653]
[1732858124006,1.73676907,3592.3,3592.2,3.653]
[1732858125397,1.45846907,3592.3,3592.2,3.653]
[1732858125705,0.27829,3592.5,3592.2,3.653]